[Event "FIDE Women's Grand Swiss 2023"]
[Site "Villa Marina, Douglas, Isle of Man, Isle Of Man"]
[Date "2023.10.26"]
[Round "2.1"]
[White "Divya, Deshmukh"]
[Black "Tan, Zhongyi"]
[Result "0-1"]
[TimeControl "40/90 + 30 + 30s/move"]
[WhiteFideId "35006916"]
[BlackFideId "8603642"]
[WhiteElo "2408"]
[BlackElo "2517"]

1. c4 {[%clk 01:30:58]} {[%emt 00:00:02]} f5 {[%clk 01:29:51]} {[%emt
00:01:08]} 2. Nf3 {[%clk 01:28:55]} {[%emt 00:02:33]} Nf6 {[%clk 01:30:02]}
{[%emt 00:00:19]} 3. g3 {[%clk 01:28:55]} {[%emt 00:00:31]} g6 {[%clk
01:29:59]} {[%emt 00:00:33]} 4. Bg2 {[%clk 01:29:00]} {[%emt 00:00:25]} Bg7
{[%clk 01:30:23]} {[%emt 00:00:05]} 5. O-O {[%clk 01:27:41]} {[%emt 00:01:49]}
d6 {[%clk 01:30:46]} {[%emt 00:00:07]} 6. d4 {[%clk 01:26:05]} {[%emt
00:02:07]} O-O {[%clk 01:31:07]} {[%emt 00:00:08]} 7. Nc3 {[%clk 01:26:31]}
{[%emt 00:00:05]} a5 {[%clk 01:31:04]} {[%emt 00:00:32]} 8. b3 {[%clk
01:13:48]} {[%emt 00:13:14]} e5 {[%clk 01:17:10]} {[%emt 00:14:23]} 9. dxe5
{[%clk 01:08:41]} {[%emt 00:05:39]} dxe5 {[%clk 01:17:33]} {[%emt 00:00:06]} 10.
Qc2 {[%clk 00:36:16]} {[%emt 00:32:56]} e4 {[%clk 01:11:29]} {[%emt 00:06:32]}
11. Rd1 {[%clk 00:36:11]} {[%emt 00:00:36]} Qe7 {[%clk 01:11:54]} {[%emt
00:00:04]} 12. Nd4 {[%clk 00:36:20]} {[%emt 00:00:22]} c6 {[%clk 01:11:52]}
{[%emt 00:00:31]} 13. Bb2 {[%clk 00:30:51]} {[%emt 00:06:00]} Na6 {[%clk
01:09:16]} {[%emt 00:03:05]} 14. Na4 {[%clk 00:29:23]} {[%emt 00:02:00]} Bd7
{[%clk 01:06:40]} {[%emt 00:03:05]} 15. Qc1 {[%clk 00:26:15]} {[%emt 00:03:38]}
Rae8 {[%clk 00:57:54]} {[%emt 00:09:15]} 16. Nc2 {[%clk 00:23:55]} {[%emt
00:02:51]} Be6 {[%clk 00:43:05]} {[%emt 00:15:18]} 17. Qd2 {[%clk 00:18:32]}
{[%emt 00:05:53]} Nb4 {[%clk 00:41:41]} {[%emt 00:01:54]} 18. Nxb4 {[%clk
00:16:53]} {[%emt 00:02:09]} axb4 {[%clk 00:41:54]} {[%emt 00:00:18]} 19. Bd4
{[%clk 00:14:12]} {[%emt 00:03:11]} Rd8 {[%clk 00:41:04]} {[%emt 00:01:18]} 20.
Bc5 {[%clk 00:14:07]} {[%emt 00:00:37]} Rxd2 {[%clk 00:37:25]} {[%emt
00:04:08]} 21. Bxe7 {[%clk 00:14:34]} {[%emt 00:00:03]} Rxd1+ {[%clk 00:37:32]}
{[%emt 00:00:23]} 22. Rxd1 {[%clk 00:15:03]} {[%emt 00:00:02]} Ra8 {[%clk
00:37:37]} {[%emt 00:00:24]} 23. Bxb4 {[%clk 00:05:06]} {[%emt 00:10:27]} Bxc4
{[%clk 00:36:40]} {[%emt 00:01:27]} 24. Bf1 {[%clk 00:01:53]} {[%emt 00:03:43]}
Be6 {[%clk 00:29:12]} {[%emt 00:07:58]} 25. e3 {[%clk 00:01:18]} {[%emt
00:01:06]} Nd5 {[%clk 00:29:23]} {[%emt 00:00:18]} 26. Bc4 {[%clk 00:01:05]}
{[%emt 00:00:43]} Kf7 {[%clk 00:26:23]} {[%emt 00:03:30]} 27. Bxd5 {[%clk
00:01:06]} {[%emt 00:00:30]} cxd5 {[%clk 00:26:47]} {[%emt 00:00:06]} 28. Rd2
{[%clk 00:00:34]} {[%emt 00:01:01]} g5 {[%clk 00:22:21]} {[%emt 00:04:56]} 29.
Bc3 {[%clk 00:00:33]} {[%emt 00:00:32]} Rc8 {[%clk 00:22:04]} {[%emt 00:00:46]}
30. Bxg7 {[%clk 00:00:40]} {[%emt 00:00:25]} Kxg7 {[%clk 00:22:29]} {[%emt
00:00:04]} 31. b4 {[%clk 00:00:53]} {[%emt 00:00:17]} Rc1+ {[%clk 00:16:27]}
{[%emt 00:06:31]} 32. Kg2 {[%clk 00:01:22]} {[%emt 00:00:02]} Bf7 {[%clk
00:15:55]} {[%emt 00:01:01]} 33. Nc5 {[%clk 00:01:44]} {[%emt 00:00:09]} Bh5
{[%clk 00:14:41]} {[%emt 00:01:43]} 34. Ne6+ {[%clk 00:02:11]} {[%emt
00:00:04]} Kf6 {[%clk 00:14:59]} {[%emt 00:00:11]} 35. Nd4 {[%clk 00:02:40]}
{[%emt 00:00:01]} Bd1 {[%clk 00:13:39]} {[%emt 00:01:49]} 36. Ne2 {[%clk
00:00:35]} {[%emt 00:02:36]} Rb1 {[%clk 00:13:23]} {[%emt 00:00:46]} 37. a3
{[%clk 00:00:36]} {[%emt 00:00:30]} Ra1 {[%clk 00:13:41]} {[%emt 00:00:11]} 38.
h3 {[%clk 00:00:32]} {[%emt 00:00:35]} Ke5 {[%clk 00:10:55]} {[%emt 00:03:15]}
39. Nd4 {[%clk 00:00:32]} {[%emt 00:00:31]} h5 {[%clk 00:09:08]} {[%emt
00:02:17]} 40. b5 {[%clk 00:00:32]} {[%emt 00:00:29]} g4 {[%clk 00:09:12]}
{[%emt 00:00:26]} 41. hxg4 {[%clk 00:23:28]} {[%emt 00:07:34]} hxg4 {[%clk
00:39:37]} {[%emt 00:00:05]} 42. Kh2 {[%clk 00:23:52]} {[%emt 00:00:06]} Bf3
{[%clk 00:39:44]} {[%emt 00:00:23]} 43. Nxf3+ {[%clk 00:24:16]} {[%emt
00:00:07]} gxf3 {[%clk 00:40:10]} {[%emt 00:00:04]} 44. Rc2 {[%clk 00:20:28]}
{[%emt 00:04:18]} Rxa3 {[%clk 00:40:01]} {[%emt 00:00:38]} 45. Rc7 {[%clk
00:19:14]} {[%emt 00:01:44]} Ra2 {[%clk 00:40:27]} {[%emt 00:00:04]} 46. Rxb7
{[%clk 00:16:08]} {[%emt 00:03:37]} Rxf2+ {[%clk 00:40:46]} {[%emt 00:00:11]}
47. Kg1 {[%clk 00:16:36]} {[%emt 00:00:02]} Rb2 {[%clk 00:41:10]} {[%emt
00:00:05]} 48. Rb8 {[%clk 00:15:51]} {[%emt 00:01:16]} d4 {[%clk 00:39:07]}
{[%emt 00:02:33]} 49. Re8+ {[%clk 00:14:45]} {[%emt 00:01:36]} Kf6 {[%clk
00:39:32]} {[%emt 00:00:05]} 50. exd4 {[%clk 00:15:13]} {[%emt 00:00:02]} Rxb5
{[%clk 00:39:57]} {[%emt 00:00:04]} 51. Kf2 {[%clk 00:11:40]} {[%emt 00:04:04]}
Kf7 {[%clk 00:40:11]} {[%emt 00:00:15]} 52. Ra8 {[%clk 00:08:14]} {[%emt
00:03:57]} Rb2+ {[%clk 00:40:36]} {[%emt 00:00:05]} 53. Kf1 {[%clk 00:08:38]}
{[%emt 00:00:06]} e3 {[%clk 00:40:58]} {[%emt 00:00:08]} 54. Ra1 {[%clk
00:09:06]} {[%emt 00:00:01]} Ke6 {[%clk 00:41:09]} {[%emt 00:00:19]} 55. Re1
{[%clk 00:09:12]} {[%emt 00:00:23]} Rf2+ {[%clk 00:40:36]} {[%emt 00:01:03]} 56.
Kg1 {[%clk 00:09:40]} {[%emt 00:00:03]} Rg2+ {[%clk 00:40:59]} {[%emt
00:00:07]} 57. Kh1 {[%clk 00:10:03]} {[%emt 00:00:08]} e2 {[%clk 00:40:34]}
{[%emt 00:00:54]} 58. g4 {[%clk 00:10:22]} {[%emt 00:00:11]} Rxg4 {[%clk
00:40:57]} {[%emt 00:00:07]} 59. Kh2 {[%clk 00:10:45]} {[%emt 00:00:08]} Kd6
{[%clk 00:41:17]} {[%emt 00:00:08]} 0-1

[Event "FIDE Women's Grand Swiss 2023"]
[Site "Villa Marina, Douglas, Isle of Man, Isle Of Man"]
[Date "2023.10.26"]
[Round "2.2"]
[White "Muzychuk, Anna"]
[Black "Tsolakidou, Stavroula"]
[Result "1-0"]
[TimeControl "40/90 + 30 + 30s/move"]
[WhiteFideId "14111330"]
[BlackFideId "4264312"]
[WhiteElo "2510"]
[BlackElo "2385"]

1. e4 {[%clk 01:30:57]} {[%emt 00:00:01]} c5 {[%clk 01:30:54]} {[%emt
00:00:06]} 2. c3 {[%clk 01:31:22]} {[%emt 00:00:06]} e5 {[%clk 01:30:42]}
{[%emt 00:00:42]} 3. Nf3 {[%clk 01:31:23]} {[%emt 00:00:30]} Nc6 {[%clk
01:31:04]} {[%emt 00:00:08]} 4. Bc4 {[%clk 01:31:27]} {[%emt 00:00:26]} Nf6
{[%clk 01:30:56]} {[%emt 00:00:36]} 5. Ng5 {[%clk 01:29:43]} {[%emt 00:02:15]}
d5 {[%clk 01:31:17]} {[%emt 00:00:09]} 6. exd5 {[%clk 01:30:06]} {[%emt
00:00:08]} Nxd5 {[%clk 01:31:38]} {[%emt 00:00:08]} 7. Qh5 {[%clk 01:25:35]}
{[%emt 00:05:01]} g6 {[%clk 01:31:51]} {[%emt 00:00:17]} 8. Qf3 {[%clk
01:25:56]} {[%emt 00:00:09]} Qxg5 {[%clk 01:32:11]} {[%emt 00:00:10]} 9. Bxd5
{[%clk 01:26:03]} {[%emt 00:00:23]} Nd8 {[%clk 01:31:58]} {[%emt 00:00:43]} 10.
O-O {[%clk 01:25:35]} {[%emt 00:00:58]} Qe7 {[%clk 01:31:57]} {[%emt 00:00:30]}
11. d4 {[%clk 01:19:29]} {[%emt 00:06:37]} cxd4 {[%clk 01:28:33]} {[%emt
00:03:54]} 12. cxd4 {[%clk 01:19:47]} {[%emt 00:00:11]} exd4 {[%clk 01:28:41]}
{[%emt 00:00:23]} 13. Bf4 {[%clk 01:18:04]} {[%emt 00:02:14]} g5 {[%clk
01:27:26]} {[%emt 00:01:45]} 14. Bg3 {[%clk 01:08:48]} {[%emt 00:09:46]} Bg7
{[%clk 01:26:44]} {[%emt 00:01:11]} 15. Nd2 {[%clk 01:02:20]} {[%emt 00:06:58]}
O-O {[%clk 01:23:38]} {[%emt 00:03:36]} 16. Ne4 {[%clk 00:57:05]} {[%emt
00:05:46]} g4 {[%clk 01:15:54]} {[%emt 00:08:13]} 17. Qb3 {[%clk 00:53:52]}
{[%emt 00:03:44]} Qd7 {[%clk 00:51:51]} {[%emt 00:24:33]} 18. Nc5 {[%clk
00:29:59]} {[%emt 00:24:23]} Qe7 {[%clk 00:48:12]} {[%emt 00:04:08]} 19. Rac1
{[%clk 00:28:19]} {[%emt 00:02:10]} Ne6 {[%clk 00:45:29]} {[%emt 00:03:13]} 20.
Nd3 {[%clk 00:24:55]} {[%emt 00:03:54]} h5 {[%clk 00:36:19]} {[%emt 00:09:41]}
21. Rfe1 {[%clk 00:24:25]} {[%emt 00:00:59]} Qg5 {[%clk 00:31:14]} {[%emt
00:05:32]} 22. Be5 {[%clk 00:19:34]} {[%emt 00:05:24]} Qg6 {[%clk 00:21:55]}
{[%emt 00:09:50]} 23. Be4 {[%clk 00:16:06]} {[%emt 00:03:57]} Qg5 {[%clk
00:21:23]} {[%emt 00:01:02]} 24. Bd5 {[%clk 00:16:15]} {[%emt 00:00:21]} Qg6
{[%clk 00:21:44]} {[%emt 00:00:09]} 25. Be4 {[%clk 00:15:33]} {[%emt 00:01:11]}
Qg5 {[%clk 00:21:55]} {[%emt 00:00:19]} 26. Bxb7 {[%clk 00:15:14]} {[%emt
00:00:50]} Bxb7 {[%clk 00:21:36]} {[%emt 00:00:49]} 27. Qxb7 {[%clk 00:15:41]}
{[%emt 00:00:03]} Qf5 {[%clk 00:19:29]} {[%emt 00:02:36]} 28. Bxg7 {[%clk
00:14:17]} {[%emt 00:01:55]} Kxg7 {[%clk 00:19:13]} {[%emt 00:00:46]} 29. Qa6
{[%clk 00:11:20]} {[%emt 00:03:27]} h4 {[%clk 00:16:22]} {[%emt 00:03:21]} 30.
Re5 {[%clk 00:08:59]} {[%emt 00:02:51]} Qg6 {[%clk 00:16:46]} {[%emt 00:00:05]}
31. Nc5 {[%clk 00:03:37]} {[%emt 00:05:53]} Rfc8 {[%clk 00:09:48]} {[%emt
00:07:28]} 32. b4 {[%clk 00:03:24]} {[%emt 00:00:43]} h3 {[%clk 00:06:18]}
{[%emt 00:04:00]} 33. Qd6 {[%clk 00:01:04]} {[%emt 00:02:50]} Nxc5 {[%clk
00:05:25]} {[%emt 00:01:23]} 34. Qxd4 {[%clk 00:00:46]} {[%emt 00:00:48]} Nb3
{[%clk 00:05:25]} {[%emt 00:00:30]} 35. axb3 {[%clk 00:01:05]} {[%emt
00:00:11]} Rxc1+ {[%emt 00:01:19]} 36. Re1+ Kg8 {[%clk 00:03:48]} {[%emt
00:01:18]} 37. Rxc1 {[%clk 00:02:03]} {[%emt 00:00:03]} Re8 {[%clk 00:03:38]}
{[%emt 00:00:39]} 38. Qd5 {[%clk 00:00:54]} {[%emt 00:01:38]} a6 {[%clk
00:01:01]} {[%emt 00:03:08]} 39. b5 {[%clk 00:00:41]} {[%emt 00:00:43]} axb5
{[%clk 00:00:41]} {[%emt 00:00:50]} 40. Qxb5 {[%clk 00:00:41]} {[%emt
00:00:30]} Qh6 {[%clk 00:00:32]} {[%emt 00:00:39]} 41. Qxe8+ {[%clk 00:01:04]}
{[%emt 00:00:07]} 1-0

[Event "FIDE Women's Grand Swiss 2023"]
[Site "Villa Marina, Douglas, Isle of Man, Isle Of Man"]
[Date "2023.10.26"]
[Round "2.3"]
[White "Garifullina, Leya"]
[Black "Paehtz, Elisabeth"]
[Result "1/2-1/2"]
[TimeControl "40/90 + 30 + 30s/move"]
[WhiteFideId "34127035"]
[BlackFideId "4641833"]
[WhiteElo "2402"]
[BlackElo "2484"]

1. e4 {[%clk 01:30:45]} {[%emt 00:00:14]} c5 {[%clk 01:30:58]} {[%emt
00:00:03]} 2. Nf3 {[%clk 01:31:02]} {[%emt 00:00:12]} Nc6 {[%clk 01:31:25]}
{[%emt 00:00:03]} 3. d4 {[%clk 01:31:13]} {[%emt 00:00:19]} cxd4 {[%clk
01:31:52]} {[%emt 00:00:04]} 4. Nxd4 {[%clk 01:31:35]} {[%emt 00:00:08]} Nf6
{[%clk 01:32:19]} {[%emt 00:00:03]} 5. Nc3 {[%clk 01:31:53]} {[%emt 00:00:11]}
e5 {[%clk 01:32:46]} {[%emt 00:00:04]} 6. Ndb5 {[%clk 01:32:13]} {[%emt
00:00:10]} d6 {[%clk 01:33:12]} {[%emt 00:00:04]} 7. Nd5 {[%clk 01:32:32]}
{[%emt 00:00:10]} Nxd5 {[%clk 01:33:37]} {[%emt 00:00:05]} 8. exd5 {[%clk
01:32:53]} {[%emt 00:00:09]} Nb8 {[%clk 01:30:39]} {[%emt 00:03:29]} 9. a4
{[%clk 01:32:48]} {[%emt 00:00:34]} Be7 {[%clk 01:31:04]} {[%emt 00:00:05]} 10.
Be2 {[%clk 01:33:10]} {[%emt 00:00:09]} O-O {[%clk 01:31:30]} {[%emt 00:00:04]}
11. Bd2 {[%clk 01:33:18]} {[%emt 00:00:22]} Nd7 {[%clk 01:31:03]} {[%emt
00:00:57]} 12. a5 {[%clk 01:29:42]} {[%emt 00:04:06]} f5 {[%clk 01:06:34]}
{[%emt 00:24:59]} 13. O-O {[%clk 01:24:46]} {[%emt 00:05:26]} a6 {[%clk
01:06:55]} {[%emt 00:00:10]} 14. Na3 {[%clk 01:25:04]} {[%emt 00:00:10]} Nf6
{[%clk 01:07:10]} {[%emt 00:00:15]} 15. Bb4 {[%clk 01:22:17]} {[%emt 00:03:17]}
Bd7 {[%clk 01:00:34]} {[%emt 00:07:07]} 16. Re1 {[%clk 01:15:12]} {[%emt
00:07:34]} Be8 {[%clk 00:54:22]} {[%emt 00:06:42]} 17. Nc4 {[%clk 01:12:43]}
{[%emt 00:02:59]} e4 {[%clk 00:46:28]} {[%emt 00:08:25]} 18. Nb6 {[%clk
01:01:44]} {[%emt 00:11:29]} Rb8 {[%clk 00:46:55]} {[%emt 00:00:04]} 19. Bc3
{[%clk 00:57:43]} {[%emt 00:04:30]} Nd7 {[%clk 00:43:17]} {[%emt 00:04:08]} 20.
Bd4 {[%clk 00:57:23]} {[%emt 00:00:49]} Bg6 {[%clk 00:33:33]} {[%emt 00:10:14]}
21. c4 {[%clk 00:51:20]} {[%emt 00:06:33]} Nxb6 {[%clk 00:23:05]} {[%emt
00:10:59]} 22. axb6 {[%clk 00:49:21]} {[%emt 00:02:29]} Bg5 {[%clk 00:19:39]}
{[%emt 00:03:55]} 23. Ra3 {[%clk 00:43:24]} {[%emt 00:06:27]} Kh8 {[%clk
00:16:18]} {[%emt 00:03:52]} 24. b4 {[%clk 00:39:12]} {[%emt 00:04:42]} f4
{[%clk 00:14:06]} {[%emt 00:02:42]} 25. Bg4 {[%clk 00:30:17]} {[%emt 00:09:24]}
Bf6 {[%clk 00:12:00]} {[%emt 00:02:38]} 26. Be6 {[%clk 00:23:19]} {[%emt
00:07:26]} Re8 {[%clk 00:12:24]} {[%emt 00:00:07]} 27. Bxf6 {[%clk 00:21:07]}
{[%emt 00:02:42]} Qxf6 {[%clk 00:12:50]} {[%emt 00:00:04]} 28. c5 {[%clk
00:21:02]} {[%emt 00:00:35]} Bf5 {[%clk 00:06:06]} {[%emt 00:07:14]} 29. Bxf5
{[%clk 00:19:07]} {[%emt 00:02:25]} Qxf5 {[%clk 00:06:34]} {[%emt 00:00:02]} 30.
c6 {[%clk 00:17:58]} {[%emt 00:01:38]} bxc6 {[%clk 00:06:41]} {[%emt 00:00:23]}
31. dxc6 {[%clk 00:18:22]} {[%emt 00:00:06]} Rxb6 {[%clk 00:06:48]} {[%emt
00:00:24]} 32. Qxd6 {[%clk 00:17:45]} {[%emt 00:01:07]} h6 {[%clk 00:03:39]}
{[%emt 00:03:39]} 33. Rc3 {[%clk 00:13:09]} {[%emt 00:05:06]} e3 {[%clk
00:01:45]} {[%emt 00:02:24]} 34. fxe3 {[%clk 00:10:29]} {[%emt 00:03:09]} fxe3
{[%clk 00:02:13]} {[%emt 00:00:03]} 35. Qg3 {[%clk 00:08:52]} {[%emt 00:02:07]}
Qf6 {[%clk 00:00:54]} {[%emt 00:01:49]} 36. Rec1 {[%clk 00:05:06]} {[%emt
00:04:16]} e2 {[%clk 00:00:44]} {[%emt 00:00:40]} 37. Qe1 {[%clk 00:01:45]}
{[%emt 00:03:50]} Qd4+ {[%clk 00:00:48]} {[%emt 00:00:27]} 38. Kh1 {[%clk
00:02:07]} {[%emt 00:00:08]} Rbb8 {[%clk 00:01:02]} {[%emt 00:00:16]} 39. c7
{[%clk 00:01:49]} {[%emt 00:00:48]} Rbc8 {[%clk 00:01:29]} {[%emt 00:00:03]} 40.
R3c2 {[%clk 00:01:40]} {[%emt 00:00:38]} Qe5 {[%clk 00:01:36]} {[%emt
00:00:21]} 41. h3 {[%clk 00:00:38]} {[%emt 00:01:34]} Re7 {[%clk 00:21:27]}
{[%emt 00:10:40]} 42. Rd2 {[%clk 00:27:42]} {[%emt 00:03:26]} Rcxc7 {[%clk
00:20:04]} {[%emt 00:01:53]} 43. Rxc7 {[%clk 00:28:03]} {[%emt 00:00:09]} Qxc7
{[%clk 00:19:33]} {[%emt 00:01:01]} 44. Rxe2 {[%clk 00:28:28]} {[%emt
00:00:05]} Rxe2 {[%clk 00:20:00]} {[%emt 00:00:03]} 45. Qxe2 {[%clk 00:28:56]}
{[%emt 00:00:02]} Qc1+ {[%clk 00:20:25]} {[%emt 00:00:05]} 46. Kh2 {[%clk
00:29:23]} {[%emt 00:00:03]} Qf4+ {[%clk 00:20:52]} {[%emt 00:00:03]} 47. Kh1
{[%clk 00:29:50]} {[%emt 00:00:03]} Qxb4 {[%clk 00:21:14]} {[%emt 00:00:08]} 48.
Qxa6 {[%clk 00:30:17]} {[%emt 00:00:03]} 1/2-1/2